Cogmind - Beta 15 *** ADVENTURER MODE // 2025.06.05 @ 22:05:12 Player: WimP_Lo Result: Destroyed by OF-06N(R) with Subdweller Laser Performance ------------- Evolutions (0) 0 Regions Visited (2) 400 Robots Destroyed (8) 40 Value Destroyed (320) 320 Prototype IDs (2) 40 Alien Tech Used (0) 0 Bonus (0) 0 TOTAL SCORE: 800 Bonus ------- None Cogmind --------- Core Integrity 0/250 Matter 300/300 Energy 100/100 System Corruption 0% Temperature Cool (6) Movement Rolling (100) Location -10/Subcaves Parts ------- > --- POWER (1) -------- (None) > --- PROPULSION (2) --- Compact Wheel > --- UTILITY (2) ------ Improved Heat Sink Small Storage Unit > --- WEAPON (2) ------- (None) > --- INVENTORY (8) ---- (None) Peak State ------------ > --- POWER ------------ Light Ion Engine > --- PROPULSION ------- Light Treads Light Treads > --- UTILITY ---------- Improved Heat Sink Small Storage Unit > --- WEAPON ----------- Small Laser Subdweller Laser > --- INVENTORY -------- Compact Wheel [Rating: 10] Favorites ----------- Power Light Ion Engine Engine Light Ion Engine Propulsion Light Treads Treads Light Treads Wheel Compact Wheel Utility Small Storage Unit Device Improved Heat Sink Storage Small Storage Unit Weapon Small Laser Energy Gun Small Laser Ballistic Gun Assault Rifle Build | -11 -10 -10 ------- Run | Yrd Mat Sub Slots Evolved . | . . . Power . | . . . Propulsion . | . . . Utility . | . . . Weapon . | . . . Parts Attached 9 | 2 4 3 Power 1 | . 1 . Engine 1 | . 1 . Core . | . . . Reactor . | . . . Propulsion 3 | . 2 1 Treads 2 | . 2 . Leg . | . . . Wheel 1 | . . 1 Hover . | . . . Flight . | . . . Utility 2 | . 1 1 Device 1 | . . 1 Storage 1 | . 1 . Processor . | . . . Hackware . | . . . Protection . | . . . Artifact . | . . . Weapon 3 | 2 . 1 Energy Gun 2 | 1 . 1 Energy Cannon . | . . . Ballistic Gun 1 | 1 . . Ballistic Cannon . | . . . Launcher . | . . . Special Weapon . | . . . Impact Weapon . | . . . Slashing Weapon . | . . . Piercing Weapon . | . . . Special Melee Weapon . | . . . Unidentified Prototypes . | . . . Parts Lost 6 | . . 6 Power 1 | . . 1 Propulsion 2 | . . 2 Utility . | . . . Weapon 3 | . . 3 Highest Loss Streak 3 | . . 3 To Critical Strikes . | . . . Average Backups 1 | 3 1 1 Power . | . . . Propulsion . | 2 1 . Utility . | . . . Weapon . | . . . Tool/Special . | . . . Unused Backups . | . . . Power . | . . . Propulsion . | . . . Utility . | . . . Weapon . | . . . Tool/Special . | . . . Average Slot Usage (%) 73 | . 78 71 Engine 8 | . 13 6 Treads 22 | . 27 21 Wheel 2 | . . 3 Device 5 | . . 7 Storage 12 | . 9 14 Energy Gun 11 | . 14 11 Ballistic Gun 8 | . 14 6 Peak Build Rating 10 | 2 6 10 Average Rating 6 | . 5 6 On Entrance 2 | . 2 6 Naked Turns . | . . . Heaviest Build 11 | 3 11 11 Greatest Support 40 | 3 40 40 Greatest Overweight (x) . | . . . Average Overweight (x) . | . . . Largest Inventory Capacity 8 | 5 8 8 Average Capacity 7 | 5 7 8 Most Carried 5 | 5 4 3 Average Carried 1 | 3 1 1 Final Capacity 8 | 5 8 8 Final Carried 5 | 5 1 . Class Distribution -------------------- 100% | Mutant Dominant Class ---------------- Mutant | -10/Materials Mutant | -10/Subcaves Resources | -11 -10 -10 ----------- Run | Yrd Mat Sub Matter Collected 337 | 220 36 81 Remotely . | . . . Salvage Created 373 | . . 373 Parts 28 | . . 28 Haulers Intercepted . | . . . Recyclers Shooed . | . . . Parts Field Recycled . | . . . Retrieved Matter . | . . . Parts Self-Destructed 4 | . . 4 Prevented . | . . . Kills | -11 -10 -10 ------- Run | Yrd Mat Sub Combat Hostiles Destroyed 8 | . . 8 Guns 8 | . . 8 Classes Destroyed 1 | . . 1 Subdweller 8 | . . 8 Best Kill Streak 2 | . . 2 Combat Bots Only 2 | . . 2 Max Kills in Single Turn 1 | . . 1 Gunslinging . | . . . Exploded . | . . . Melee . | . . . Uniques/NPCs Destroyed . | . . . Combat | -11 -10 -10 -------- Run | Yrd Mat Sub Hostile Shots Fired 77 | . . 77 Missed 22 | . . 22 Hits 55 | . . 55 Projectile 55 | . . 55 AOE 2 | . . 2 Critical Strikes 1 | . . 1 Damage Taken 936 | . . 936 Core 263 | . . 263 Absorbed by Shields . | . . . Ignored by Resistances 262 | . . 262 Core Remaining (%) 100 | 100 . . Volleys Fired 45 | . . 45 Largest 2 | . . 2 Hottest 100 | . . 100 Shots Fired 69 | . . 69 Gun 69 | . . 69 Cannon . | . . . Launcher . | . . . Special . | . . . Kinetic 24 | . . 24 Thermal 45 | . . 45 Explosive . | . . . Electromagnetic . | . . . Robot Hit Streak 34 | . . 34 Robot Miss Streak 1 | . . 1 Penetration Max . | . . . Secondary Targets 1 | . . 1 Max Gunslinging Chain 1 | . . 1 Shots Hit Robots 60 | . . 60 Core Hits 16 | . . 16 Critical Kills . | . . . Critical Parts Destroyed . | . . . Critical Strikes . | . . . Melee Attacks . | . . . Impact . | . . . Slashing . | . . . Piercing . | . . . Sneak Attacks . | . . . Combat Hostiles . | . . . Follow-up Attacks . | . . . Damage Inflicted 711 | . . 711 Guns 711 | . . 711 Cannons . | . . . Explosions . | . . . Melee . | . . . Ramming . | . . . Kinetic 256 | . . 256 Thermal 455 | . . 455 Explosive . | . . . Electromagnetic . | . . . Impact . | . . . Slashing . | . . . Piercing . | . . . Highest Corruption . | . . . Average Corruption . | . . . Corruption Purged . | . . . Corruption Blocked . | . . . Overload Shots . | . . . Overflow Damage . | . . . Projectiles . | . . . Explosions . | . . . Melee . | . . . Knockbacks . | . . . Impact . | . . . Kinetic . | . . . Secondary . | . . . Self-Inflicted Damage . | . . . Shots . | . . . Rammed . | . . . Targets Rammed . | . . . Kicked . | . . . Crushed . | . . . Highest Temperature . | . . . Average Temperature . | . . . Received Heat Transfer 198 | . . 198 Siege Activations . | . . . Martial Activations . | . . . Shielding Activations . | . . . Robots Disrupted . | . . . Combat Hostiles . | . . . Robots Corrupted . | . . . Combat Hostiles . | . . . Parts Fried . | . . . Impact Corruptions . | . . . Robots Melted . | . . . Combat Hostiles . | . . . Parts Melted . | . . . Heat Transferred 750 | . . 750 Parts Sabotaged . | . . . Parts Stolen . | . . . Parts Stripped . | . . . Power Chain Reactions . | . . . Alert | -11 -10 -10 ------- Run | Yrd Mat Sub Maximum Alert Level . | . . . Low Security (%) 100 | 100 100 . Level 1 . | . . . Level 2 . | . . . Level 3 . | . . . Level 4 . | . . . Level 5 . | . . . High Security . | . . . Max Security . | . . . Peak Influence . | . . . Initial . | . . . Average . | . . . Influence Increases . | . . . Influence Decreases . | . . . Squads Dispatched . | . . . Investigation . | . . . Extermination . | . . . Reinforcement . | . . . Assault . | . . . Garrison . | . . . Intercept . | . . . Searches Triggered . | . . . Construction Impeded . | . . . Haulers Reinforced . | . . . Active Scanning Responses . | . . . Cargo Convoy Interrupts . | . . . Stealth | -11 -10 -10 --------- Run | Yrd Mat Sub Distress Signals 1 | . 1 . Communications Jammed . | . . . Distress Signals . | . . . Times Spotted 12 | . . 12 Peak Tracking Total 3 | . . 3 Tactical Retreats 1 | . . 1 Traps | -11 -10 -10 ------- Run | Yrd Mat Sub Traps Triggered . | . . . Indirectly . | . . . Trap Hack Attempts . | . . . Triggered . | . . . Disarmed . | . . . Reprogrammed . | . . . Reused . | . . . Traps Extracted . | . . . Installed . | . . . Triggered . | . . . Machines | -11 -10 -10 ---------- Run | Yrd Mat Sub Machines Disabled . | . . . Max in Single Turn . | . . . Machines Repaired . | . . . Machines Dismantled . | . . . Machines Sabotaged . | . . . Overloaded Fab Kills . | . . . Hacking | -11 -10 -10 --------- Run | Yrd Mat Sub Machines Accessed 1 | . 1 . Terminals 1 | . 1 . Fabricators . | . . . Repair Stations . | . . . Recycling Units . | . . . Scanalyzers . | . . . Garrison Access . | . . . Total Hacks 5 | . 5 . Successful 3 | . 3 . Failed 2 | . 2 . Catastrophic . | . . . Database Lockouts . | . . . Manual . | . . . Terminals 5 | . 5 . Fabricators . | . . . Repair Stations . | . . . Recycling Units . | . . . Scanalyzers . | . . . Garrison Access . | . . . Terminal Hacks 3 | . 3 . Prototype ID Bank 1 | . 1 . Branch Access Points 1 | . 1 . Emergency Access Points 1 | . 1 . Fabricator Hacks . | . . . Repair Station Hacks . | . . . Recycling Unit Hacks . | . . . Scanalyzer . | . . . Garrison Access Hacks . | . . . Unauthorized Hacks . | . . . Terminals . | . . . Fabricators . | . . . Repair Stations . | . . . Recycling Units . | . . . Scanalyzers . | . . . Garrison Access . | . . . Data Cores Recovered . | . . . Used . | . . . Hacking Detections 1 | . 1 . Full Trace Events . | . . . Feedback Events . | . . . Feedback Blocked . | . . . Robot Schematics Acquired . | . . . Robots Built . | . . . Authchips . | . . . Time . | . . . Total Robot Build Rating . | . . . Part Schematics Acquired . | . . . Parts Built . | . . . Authchips . | . . . Time . | . . . Total Part Build Rating . | . . . Parts Repaired . | . . . Time . | . . . Parts Recycled . | . . . Recycled Matter . | . . . Retrieved Matter . | . . . Retrieved Components . | . . . Parts Scanalyzed . | . . . Part Schematics Acquired . | . . . Parts Damaged . | . . . Bothacking | -11 -10 -10 ------------ Run | Yrd Mat Sub Used RIF Installer . | . . . Robots Hacked . | . . . Non-combat . | . . . Combat . | . . . Robot Hacks Applied . | . . . Relay Couplers Released . | . . . Fabnet Peak Effective % . | . . . Robots Rewired . | . . . Allies Hacked . | . . . Hacks Repelled . | . . . Allies | -11 -10 -10 -------- Run | Yrd Mat Sub Total Allies . | . . . Largest Group . | . . . Highest-Rated Group . | . . . Highest-Rated Ally . | . . . Total Orders . | . . . Ally Attacks . | . . . Total Damage . | . . . Kills . | . . . Allies Corrupted . | . . . Allies Melted . | . . . Intel | -11 -10 -10 ------- Run | Yrd Mat Sub Active Infowar (turns) . | . . . Robot Analysis Total . | . . . Derelict Logs Recovered 1 | . . 1 Drone Launches . | . . . Drone Recoveries . | . . . Exploration | -11 -10 -10 ------------- Run | Yrd Mat Sub Turns Passed 692 | 24 146 522 Spaces Moved 405 | 32 87 286 Core 32 | 32 . . Treads 261 | . 87 174 Legs . | . . . Wheels 112 | . . 112 Hover . | . . . Flight . | . . . Fastest Speed 50 | 50 160 100 Average Speed 134 | 50 160 136 Slowest Speed 160 | 50 160 160 Overloaded Moves . | . . . Propulsion Burnouts . | . . . Robots Hopped . | . . . Potential Cave-ins . | . . . Cave-ins Triggered . | . . . Exploration Rate (%) 19 | 3 25 30 Regions Visited 2 Branch Regions 1 Pre-discovered Areas 1 | . . 1 Known Exits Taken . | . . . Unknown Exits Taken 2 | 1 1 . Scrap Searched . | . . . Spaces Dug . | . . . Terrain Destroyed 1 | . . 1 Melee . | . . . Projectile 1 | . . 1 AOE . | . . . Terrain Rammed . | . . . Walls Destroyed . | . . . Machines Disabled . | . . . Actions | -11 -10 -10 --------- Run | Yrd Mat Sub Total 481 | 38 94 349 Wait 15 | . 4 11 Move 403 | 31 86 286 Hop . | . . . Pick Up 8 | 5 . 3 Fast Attach 2 | 2 . . Attach 7 | . 4 3 Detach . | . . . Swap . | . . . Drop 1 | . . 1 Fire 45 | . . 45 Melee . | . . . Ram . | . . . Kick . | . . . Crush . | . . . Escape Stasis . | . . . Rewire . | . . . Trap . | . . . Miscellaneous . | . . . Route ------- -11/Scrapyard -10/Materials (discovered 4 exits: [*Mat] / *Min x2 / [*Sub]) -10/Subcaves (discovered 1 exit: [*Mat]) History --------- Turn | Location | Event 14 | -11/Scrapyard | Discovered new exit (range 16) 25 | -11/Scrapyard | Entered Materials 26 | -10/Materials | Met a group of wandering Federalists 46 | -10/Materials | Identified exit to Mines 132 | -10/Materials | Discovered new exit (range 3) 168 | -10/Materials | Discovered new exit (range 3) 171 | -10/Materials | Entered Subcaves 172 | -10/Subcaves | Continued accompanying wandering Federalists (3) 172 | -10/Subcaves | Approached by a straggling Scientist 195 | -10/Subcaves | Learned location of Zion (-6) 261 | -10/Subcaves | Lost 3 allies 313 | -10/Subcaves | Build established: Mutant 426 | -10/Subcaves | Ambushed by Subdweller buried in earth 457 | -10/Subcaves | Lost 3 parts (1p2w) 548 | -10/Subcaves | Discovered new exit (range 13) 554 | -10/Subcaves | Ambushed by Subdwellers from Twisted Machinery 574 | -10/Subcaves | Core integrity fell below 50% 581 | -10/Subcaves | Core integrity fell below 20% 613 | -10/Subcaves | Lost 3 parts (2n1w) 689 | -10/Subcaves | Disturbed a concealed Subdweller 693 | -10/Subcaves | Destroyed by OF-06N(R) with Subdweller Laser Last Messages --------------- 00428_ AJ-TWB(R) destroyed. 00430_ A6-TMH(R) destroyed. 00437_ LG-IJF(R) affixes Scrap Shield Fragment to Scrap Shield. 00451_ LG-IJF(R) destroyed. 00453_ Acquired 13 matter. 00471_ Subatomizers dissect the Sub. Monowheel. BT-7AX(c): "I think it's somewhere northeast of here" BT-7AX(c): "I think it's somewhere north of here" 00548_ EXIT=FOUND 00554_ 0W-8SY(R) emerges from the Twisted Machinery. 00563_ Lgt. Treads destroyed. BT-7AX(c): "I think it's somewhere north of here" 00582_ Sub. Laser destroyed. 00689_ OF-06N(R) angrily emerges from the Twisted Machinery. Map ----- +----------------------------------------------------+ | ???????????????????????????# ### #?# #????? | | ???????????????????????????# ##?## ###???? | | ???????????????????????????# #??# #???? | | ???????????????????????????# ######??# #???? | | ???????????????????????????# ##???????# #???? | | ???????????????????????????# #????????## ##???? | | ???????????????????????????# ##????????# ##????? | | ???????????????????????##### #??????### ###???? | | ???????????????????????# #?????## ##??? | | ???????????????????????# ###????## ###? | | ???????????????????????# ###??????# #? | | ??????????????????????## #?????##?## #? | | ??????????????????????# R#?????# #### #? | | ??????????????????????# #???### #### ##? | | ?????????????????????## #?### # #?# #?? | | ??????????? ## ?????# ### ### #?? | | ???????????# ### ## #?? | | ????????????# # ## #?? | | ?????????????# ##### ##??# ##?? | | ?????????????????????# #??## ## #??? | | ?????????????????????### #?## #? #??? | | ??????????????????????## ####?# #? ##?? | | ??????????????????????# ###### ####? #?? | | ?????????????????# #$#< ## ###### #?? | | ??????????????????# &R ## ### #?? | | ?????????????????#$&"##< @ ### ## #?? | | ?????????????????# $?# #### #? | | ??????????????????#??### ## # #? | | ???????????????????????# ### ## #? | | ???????????????????????# ##??##??## ?#? | | ???????????????????????# # #???????????? | | ???????????????????????# ## ##????#?????? | | ???????????????????????##### ## ##????? | | ???????????????????????????# #????? | | ????????????????????????#### #????? | | ????????????????????????# ### ##????? | | ????????????????????????# ####?? #?????? | | ????????????????????????# #?????? " #????? | | ????????????????????????# #??????#"" #????? | | ????????????????????????# #????????"##????? | | ????????????????????????# #???????""##?#??? | | ????????????????????????# ##??????" "# ##?? | | ???????????????????????## ##????# " "#?? | | ???????????????????????# ##??? <""#?? | | ???????????????????????# ### #### " ""#??? | | ???????????????????????# ??## "## #?????? | | ???????????????????????# ???# ##?????? | | ???????????????????????# #### " "#??????? | | ???????????????????????# ""##?????? | | ???????????????????????# ##????? | +----------------------------------------------------+ Best States ------------- Heat Dissipation 39 Energy Generation 10 Energy Capacity 125 Matter Stores 300 Matter Capacity 300 Sight Range 16 Terrain Scan Density 10 Resistance: KI 20 Resistance: TH 20 Resistance: EX 20 Resistance: EM 20 Resistance: I 20 Resistance: S 20 Resistance: P 20 Evasion (%) 50 Recoil Reduction 2 Offensive Hacking 10 Item Schematics ----------------- None Robot Schematics ------------------ None Fabricated ------------ Nothing Repaired ---------- Nothing Alien Tech Used ----------------- None Achievements -------------- None Challenges ------------ None Game ------ Seed PrecisionArchitectArchive Manual? 0 Play Time 00:11:32 Cumulative 25.6 hours Start 2025.06.05 @ 21:55:24 End 2025.06.05 @ 22:05:12 Sessions 1 Manual Loads 0 Difficulty Adventurer Special Mode None Game No. 29 Rogue 2 Adventurer 27 Explorer 0 Win Type - Total 0 Types 0/0/0/0/0/0/0/0/0/0 Lore% 12 Gallery% 19 Achievement% 17 Wizard Run 0 Options --------- Layout 1 ASCII 0 Keyboard 0 Movement Mouse Keybinds 0 Fullscreen 1 Font 24/Smallcaps Map View 50x35 Zoom Use 0% Tactical HUD 1 Map Filters NONE Filters NONE Steam 1 RUN: e1729c2f-c71b-49f5-92b1-5a5351542cf6